fUSD/lending_fUSD_20250407
["ID","MTS","AMOUNT","RATE_DAILY","PERIOD"]
[357410982,1744051922577,-1664.44,0.00043835,30]
[357410983,1744051922605,-1664.44,0.00043835,30]
[357410984,1744051922632,-1664.44,0.00043835,30]
[357410985,1744051922660,-855.31,0.00043835,30]
[357410986,1744051922687,-500.0,0.00043835,30]
[357410987,1744051922716,-1664.44,0.00043835,30]
[357410988,1744051923002,-500.0,0.00043835,30]
[357410989,1744051923040,-1664.44,0.00043835,30]
[357410990,1744051923073,-1664.44,0.00043835,30]
[357410991,1744051923106,-1664.44,0.00043835,30]
[357410992,1744051923138,-1664.44,0.00043835,30]
[357410993,1744051923170,-1664.44,0.00043835,30]
[357410994,1744051923201,-1664.44,0.00043835,30]
[357410995,1744051923231,-500.0,0.00043835,30]
[357410996,1744051923260,-500.0,0.00043835,30]
[357410997,1744051923291,-500.0,0.00043835,30]
[357410998,1744051923323,-1514.74,0.00043835,30]
[357410999,1744051923354,-500.0,0.00043835,30]
[357411000,1744051923386,-594.35620789,0.00043835,30]
[357411001,1744051923420,-500.0,0.00043835,30]
[357411002,1744051923451,-154.32810467,0.00043836,120]
[357411003,1744051923484,-154.32810467,0.00044,120]
[357411004,1744051923515,-308.83161985,0.00044108,30]
[357411005,1744051923547,-265.11278243,0.00044108,30]
[357411006,1744051923577,-500.0,0.00044108,30]
[357411007,1744051923607,-500.0,0.00044108,30]
[357411008,1744051923639,-1664.44,0.00044108,30]
[357411009,1744051923672,-1664.44,0.00044108,30]
[357411010,1744051923703,-1664.44,0.00044108,30]
[357411011,1744051923735,-916.409898,0.00044109,30]
[357411012,1744051923764,-167.546997,0.00044109,30]
[357411013,1744051923795,-9111.53792,0.00044109,30]
[357411014,1744051923828,-205.563459,0.00044109,30]
[357411015,1744051923858,-448.34210657,0.00044109,30]
[357411016,1744051923886,-500.0,0.00044109,30]
[357411017,1744051923924,-495.50664316,0.00044109,30]
[357411018,1744051923953,-258.42430333,0.00044109,30]
[357411019,1744051923982,-500.0,0.00044109,30]
[357411020,1744051924011,-596.8811798,0.00044109,30]
[357411021,1744051924039,-500.0,0.00044109,30]
[357411022,1744051924068,-501.18084943,0.00044109,30]
[357411023,1744051924097,-500.0,0.00044109,30]
[357411024,1744051924126,-526.723128,0.00044109,30]
[357411025,1744051924155,-500.0,0.00044109,30]
[357411026,1744051924187,-157.84405697,0.00044109,30]
[357411027,1744051924219,-500.0,0.00044109,30]
[357411028,1744051924249,-500.0,0.00044109,30]
[357411029,1744051924279,-500.0,0.00044109,30]
[357411030,1744051924308,-500.0,0.00044109,30]
[357411032,1744051924338,-512.50027143,0.00044109,30]
[357411033,1744051924370,-500.0,0.00044109,30]
[357411034,1744051924401,-500.0,0.00044109,30]
[357411035,1744051924437,-391.86114324,0.00044109,30]
[357411036,1744051924467,-531.57916665,0.00044109,30]
[357411037,1744051924496,-500.0,0.00044109,30]
[357411038,1744051924525,-500.0,0.00044109,30]
[357411039,1744051924554,-500.0,0.00044109,30]
[357411040,1744051924583,-500.0,0.00044109,30]
[357411041,1744051924610,-487.91232042,0.00044109,30]
[357411042,1744051924639,-500.0,0.00044109,30]
[357411043,1744051924672,-500.0,0.00044109,30]
[357411044,1744051924701,-500.0,0.00044109,30]
[357411045,1744051924729,-500.0,0.00044109,30]
[357411046,1744051924759,-500.0,0.00044109,30]
[357411047,1744051924788,-500.0,0.00044109,30]
[357411048,1744051924821,-547.11,0.00044109,30]
[357411049,1744051924850,-500.0,0.00044109,30]
[357411050,1744051924877,-500.0,0.00044109,30]
[357411051,1744051924907,-500.0,0.00044109,30]
[357411052,1744051924938,-500.0,0.00044109,30]
[357411053,1744051924966,-500.0,0.00044109,30]
[357411054,1744051924993,-500.0,0.00044109,30]
[357411055,1744051925021,-500.0,0.00044109,30]
[357411056,1744051925048,-960.42,0.00044109,30]
[357411057,1744051925075,-500.0,0.00044109,30]
[357411058,1744051925103,-500.0,0.00044109,30]
[357411059,1744051925131,-500.0,0.00044109,30]
[357411060,1744051925159,-500.0,0.00044109,30]
[357411061,1744051925190,-500.0,0.00044109,30]
[357411062,1744051925218,-500.0,0.00044109,30]
[357411063,1744051925245,-638.24613547,0.00044109,30]
[357411064,1744051925273,-500.0,0.00044109,30]
[357411065,1744051925300,-500.0,0.00044109,30]
[357411066,1744051925328,-539.52263156,0.00044109,30]
[357411067,1744051925356,-822.99,0.00044109,30]
[357411068,1744051925383,-394.31939594,0.00044109,30]
[357411069,1744051925410,-500.0,0.00044109,30]
[357411070,1744051925439,-500.0,0.00044109,30]
[357411071,1744051925466,-500.0,0.00044109,30]
[357411072,1744051925492,-500.0,0.00044109,30]
[357411073,1744051925520,-500.0,0.00044109,30]
[357411074,1744051925547,-500.0,0.00044109,30]
[357411075,1744051925574,-500.0,0.00044109,30]
[357411076,1744051925600,-500.0,0.00044109,30]
[357411077,1744051925626,-541.1164673,0.00044109,30]
[357411078,1744051925653,-500.0,0.00044109,30]
[357411079,1744051925684,-500.0,0.00044109,30]
[357411080,1744051925711,-539.97340886,0.00044109,30]
[357411081,1744051925739,-500.0,0.00044109,30]
[357411082,1744051925765,-500.0,0.00044109,30]
[357411083,1744051925792,-1310.09,0.00044109,30]
[357411084,1744051925822,-725.3,0.00044109,30]
[357411085,1744051925850,-500.0,0.00044109,30]
[357411086,1744051925877,-500.0,0.00044109,30]
[357411087,1744051925905,-500.0,0.00044109,30]
[357411088,1744051925935,-500.0,0.00044109,30]
[357411089,1744051925962,-500.0,0.00044109,30]
[357411090,1744051925989,-500.0,0.00044109,30]
[357411091,1744051926016,-500.0,0.00044109,30]
[357411092,1744051926227,-500.0,0.00044109,30]
[357411093,1744051926258,-500.0,0.00044109,30]
[357411094,1744051926286,-500.0,0.00044109,30]
[357411095,1744051926314,-500.0,0.00044109,30]
[357411096,1744051926342,-500.0,0.00044109,30]
[357411097,1744051926372,-500.0,0.00044109,30]
[357411098,1744051926400,-500.0,0.00044109,30]
[357411099,1744051926430,-500.0,0.00044109,30]
[357411100,1744051926458,-500.0,0.00044109,30]
[357411101,1744051926486,-500.0,0.00044109,30]
[357411102,1744051926512,-563.24,0.00044109,30]
[357411103,1744051926540,-500.0,0.00044109,30]
[357411104,1744051926568,-500.0,0.00044109,30]
[357411105,1744051926595,-623.31,0.00044109,30]
[357411106,1744051926622,-500.0,0.00044109,30]
[357411107,1744051926648,-500.0,0.00044109,30]
[357411108,1744051926677,-500.0,0.00044109,30]
[357411109,1744051926703,-500.0,0.00044109,30]
[357411110,1744051926730,-500.0,0.00044109,30]
[357411111,1744051926756,-500.0,0.00044109,30]
[357411112,1744051926783,-500.0,0.00044109,30]
[357411113,1744051926810,-520.03,0.00044109,30]
[357411114,1744051926836,-500.0,0.00044109,30]
[357411115,1744051926863,-368.42244025,0.00044109,30]
[357411116,1744051926892,-500.0,0.00044109,30]
[357411117,1744051926920,-500.0,0.00044109,30]
[357411118,1744051926946,-500.0,0.00044109,30]
[357411119,1744051926971,-500.0,0.00044109,30]
[357411120,1744051926997,-500.0,0.00044109,30]
[357411121,1744051927024,-500.0,0.00044109,30]
[357411122,1744051927050,-500.0,0.00044109,30]
[357411123,1744051927077,-500.0,0.00044109,30]
[357411124,1744051927105,-843.02,0.00044109,30]
[357411125,1744051927132,-500.0,0.00044109,30]
[357411126,1744051927160,-224.58533225,0.00044109,30]
[357411127,1744051927189,-331.04919105,0.00044109,30]
[357411128,1744051927216,-644.19198674,0.00044109,30]
[357411129,1744051927241,-500.0,0.00044109,30]
[357411130,1744051927268,-500.0,0.00044109,30]
[357411131,1744051927295,-500.0,0.00044109,30]
[357411132,1744051927322,-500.0,0.00044109,30]
[357411133,1744051927349,-500.0,0.00044109,30]
[357411134,1744051927376,-749.93,0.00044109,30]
[357411135,1744051927404,-500.0,0.00044109,30]
[357411136,1744051927432,-500.0,0.00044109,30]
[357411137,1744051927460,-500.0,0.00044109,30]
[357411138,1744051927488,-311.5875577,0.00044109,30]
[357411139,1744051927517,-796.54,0.00044109,30]
[357411140,1744051927545,-500.0,0.00044109,30]
[357411141,1744051927575,-786.13,0.00044109,30]
[357411142,1744051927604,-500.0,0.00044109,30]
[357411143,1744051927632,-500.0,0.00044109,30]
[357411144,1744051927661,-706.82,0.00044109,30]
[357411145,1744051927693,-500.0,0.00044109,30]
[357411146,1744051927723,-500.0,0.00044109,30]
[357411147,1744051927751,-500.0,0.00044109,30]
[357411148,1744051927780,-529.87,0.00044109,30]
[357411149,1744051927809,-500.0,0.00044109,30]
[357411150,1744051927838,-500.0,0.00044109,30]
[357411151,1744051927867,-500.0,0.00044109,30]
[357411152,1744051927894,-500.0,0.00044109,30]
[357411153,1744051927925,-500.0,0.00044109,30]
[357411154,1744051927954,-500.0,0.00044109,30]
[357411155,1744051927985,-500.0,0.00044109,30]
[357411156,1744051928013,-500.0,0.00044109,30]
[357411157,1744051928041,-500.0,0.00044109,30]
[357411158,1744051928069,-500.0,0.00044109,30]
[357411159,1744051928099,-500.0,0.00044109,30]
[357411160,1744051928127,-500.0,0.00044109,30]
[357411161,1744051928158,-500.0,0.00044109,30]
[357411162,1744051928194,-500.0,0.00044109,30]
[357411163,1744051928225,-836.08,0.00044109,30]
[357411164,1744051928255,-500.0,0.00044109,30]
[357411165,1744051928286,-500.0,0.00044109,30]
[357411166,1744051928314,-500.0,0.00044109,30]
[357411167,1744051928342,-500.0,0.00044109,30]
[357411168,1744051928370,-1000.0,0.00044109,30]
[357411169,1744051928398,-500.0,0.00044109,30]
[357411170,1744051928427,-500.0,0.00044109,30]
[357411171,1744051928454,-500.0,0.00044109,30]
[357411172,1744051928481,-500.0,0.00044109,30]
[357411173,1744051928508,-572.38,0.00044109,30]
[357411174,1744051928535,-500.0,0.00044109,30]
[357411175,1744051928561,-573.93,0.00044109,30]
[357411176,1744051928589,-500.0,0.00044109,30]
[357411177,1744051928617,-500.0,0.00044109,30]
[357411178,1744051928645,-680.71,0.00044109,30]
[357411179,1744051928674,-715.14,0.00044109,30]
[357411180,1744051928701,-500.0,0.00044109,30]
[357411181,1744051928729,-690.91,0.00044109,30]
[357411182,1744051928755,-515.10200028,0.00044109,30]
[357411183,1744051928782,-566.91676321,0.00044109,30]
[357411184,1744051928811,-994.62,0.00044109,30]
[357411185,1744051928839,-500.0,0.00044109,30]
[357411186,1744051928866,-500.0,0.00044109,30]
[357411187,1744051928896,-500.0,0.00044109,30]
[357411188,1744051928925,-500.0,0.00044109,30]
[357411189,1744051928951,-598.3,0.00044109,30]
[357411190,1744051928978,-500.0,0.00044109,30]
[357411191,1744051929006,-500.0,0.00044109,30]
[357411192,1744051929035,-500.0,0.00044109,30]
[357411193,1744051929062,-500.0,0.00044109,30]
[357411194,1744051929091,-2430.07,0.00044109,30]
[357411195,1744051929119,-500.0,0.00044109,30]
[357411196,1744051929367,-534.8,0.00044109,30]
[357411197,1744051929396,-500.0,0.00044109,30]
[357411198,1744051929427,-500.0,0.00044109,30]
[357411199,1744051929454,-804.6,0.00044109,30]
[357411200,1744051929481,-500.0,0.00044109,30]
[357411201,1744051929507,-500.0,0.00044109,30]
[357411202,1744051929533,-500.0,0.00044109,30]
[357411203,1744051929561,-500.0,0.00044109,30]
[357411204,1744051929589,-500.0,0.00044109,30]
[357411205,1744051929616,-644.51,0.00044109,30]
[357411206,1744051929643,-500.0,0.00044109,30]
[357411207,1744051929673,-502.76,0.00044109,30]
[357411208,1744051929700,-500.0,0.00044109,30]
[357411209,1744051929727,-500.0,0.00044109,30]
[357411210,1744051929755,-500.0,0.00044109,30]
[357411211,1744051929782,-500.0,0.00044109,30]
[357411212,1744051929811,-1019.28,0.00044109,30]
[357411213,1744051929838,-500.0,0.00044109,30]
[357411214,1744051929866,-859.96,0.00044109,30]
[357411215,1744051929893,-500.0,0.00044109,30]
[357411216,1744051929922,-869.55,0.00044109,30]
[357411217,1744051929949,-500.0,0.00044109,30]
[357411218,1744051929976,-500.0,0.00044109,30]
[357411219,1744051930004,-500.0,0.00044109,30]
[357411220,1744051930031,-700.09,0.00044109,30]
[357411221,1744051930060,-500.0,0.00044109,30]
[357411222,1744051930090,-512.08,0.00044109,30]
[357411223,1744051930118,-645.57,0.00044109,30]
[357411224,1744051930145,-500.0,0.00044109,30]
[357411225,1744051930175,-558.29470208,0.00044109,30]
[357411226,1744051930202,-500.0,0.00044109,30]
[357411227,1744051930230,-500.0,0.00044109,30]
[357411228,1744051930257,-500.0,0.00044109,30]
[357411229,1744051930285,-500.0,0.00044109,30]
[357411230,1744051930313,-500.0,0.00044109,30]
[357411231,1744051930340,-968.13,0.00044109,30]
[357411232,1744051930368,-992.6,0.00044109,30]
[357411233,1744051930396,-167.34947591,0.00044109,30]
[357411234,1744051930427,-500.0,0.00044109,30]
[357411235,1744051930454,-500.0,0.00044109,30]
[357411236,1744051930482,-500.0,0.00044109,30]
[357411237,1744051930508,-1323.13,0.00044109,30]
[357411238,1744051930535,-500.0,0.00044109,30]
[357411239,1744051930562,-500.0,0.00044109,30]
[357411240,1744051930591,-564.4,0.00044109,30]
[357411241,1744051930620,-500.0,0.00044109,30]
[357411242,1744051930649,-500.0,0.00044109,30]
[357411243,1744051930679,-706.64,0.00044109,30]
[357411244,1744051930708,-500.0,0.00044109,30]
[357411245,1744051930735,-500.0,0.00044109,30]
[357411246,1744051930761,-407.82324286,0.00044109,30]
[357411247,1744051930789,-500.0,0.00044109,30]
[357411248,1744051930819,-500.0,0.00044109,30]
[357411249,1744051930847,-500.0,0.00044109,30]
[357411250,1744051930876,-500.0,0.00044109,30]
[357411251,1744051930905,-500.0,0.00044109,30]
[357411252,1744051930933,-500.0,0.00044109,30]
[357411253,1744051930960,-784.69,0.00044109,30]
[357411254,1744051930988,-500.0,0.00044109,30]
[357411255,1744051931014,-500.0,0.00044109,30]
[357411256,1744051931044,-500.0,0.00044109,30]
[357411257,1744051931070,-500.0,0.00044109,30]
[357411258,1744051931097,-500.0,0.00044109,30]
[357411259,1744051931123,-500.0,0.00044109,30]
[357411260,1744051931149,-258.95666534,0.00044109,30]
[357411261,1744051931176,-528.96,0.00044109,30]
[357411262,1744051931204,-516.35,0.00044109,30]
[357411263,1744051931232,-500.0,0.00044109,30]
[357411264,1744051931260,-730.68,0.00044109,30]
[357411265,1744051931288,-500.0,0.00044109,30]
[357411266,1744051931315,-500.0,0.00044109,30]
[357411267,1744051931343,-500.0,0.00044109,30]
[357411268,1744051931371,-584.24803027,0.00044109,30]
[357411269,1744051931397,-500.0,0.00044109,30]
[357411270,1744051931426,-500.0,0.00044109,30]
[357411271,1744051931452,-605.46,0.00044109,30]
[357411272,1744051931479,-1150.56,0.00044109,30]
[357411273,1744051931505,-500.0,0.00044109,30]
[357411274,1744051931531,-500.0,0.00044109,30]
[357411275,1744051931559,-500.0,0.00044109,30]
[357411276,1744051931586,-500.0,0.00044109,30]
[357411277,1744051931613,-645.16,0.00044109,30]
[357411278,1744051931640,-1000.0,0.00044109,120]
[357411279,1744051931668,-500.0,0.00044109,30]
[357411280,1744051931699,-660.97,0.00044109,30]
[357411281,1744051931725,-500.0,0.00044109,30]
[357411282,1744051931751,-500.0,0.00044109,30]
[357411283,1744051931776,-500.0,0.00044109,30]
[357411284,1744051931802,-859.28,0.00044109,30]
[357411285,1744051931831,-500.0,0.00044109,30]
[357411286,1744051931857,-500.0,0.00044109,30]
[357411287,1744051931882,-500.0,0.00044109,30]
[357411288,1744051931912,-500.0,0.00044109,30]
[357411289,1744051931941,-500.0,0.00044109,30]
[357411290,1744051931967,-542.41,0.00044109,30]
[357411291,1744051931995,-500.0,0.00044109,30]
[357411292,1744051932023,-500.0,0.00044109,30]
[357411293,1744051932049,-500.0,0.00044109,30]
[357411294,1744051932076,-500.0,0.00044109,30]
[357411295,1744051932103,-500.0,0.00044109,30]
[357411296,1744051932130,-500.0,0.00044109,30]
[357411297,1744051932156,-536.64,0.00044109,30]
[357411298,1744051932185,-500.0,0.00044109,30]
[357411299,1744051932213,-507.26,0.00044109,30]
[357411300,1744051932432,-500.0,0.00044109,30]
[357411301,1744051932462,-500.0,0.00044109,30]
[357411302,1744051932492,-724.23,0.00044109,30]
[357411303,1744051932521,-670.73,0.00044109,30]
[357411304,1744051932549,-376.93199946,0.00044109,30]
[357411305,1744051932578,-500.0,0.00044109,30]
[357411306,1744051932606,-500.0,0.00044109,30]
[357411307,1744051932635,-500.0,0.00044109,30]
[357411308,1744051932664,-500.0,0.00044109,30]
[357411309,1744051932693,-500.0,0.00044109,30]
[357411310,1744051932721,-500.0,0.00044109,30]
[357411311,1744051932751,-661.55,0.00044109,30]
[357411312,1744051932778,-629.1683263,0.00044109,30]
[357411313,1744051932811,-500.0,0.00044109,30]
[357411314,1744051932840,-500.0,0.00044109,30]
[357411315,1744051932871,-500.0,0.00044109,30]
[357411316,1744051932901,-500.0,0.00044109,30]
[357411317,1744051932936,-500.0,0.00044109,30]
[357411318,1744051932965,-500.0,0.00044109,30]
[357411319,1744051932993,-500.0,0.00044109,30]
[357411320,1744051933021,-500.0,0.00044109,30]
[357411321,1744051933047,-500.0,0.00044109,30]
[357411322,1744051933074,-500.0,0.00044109,30]
[357411323,1744051933102,-686.04,0.00044109,30]
[357411324,1744051933131,-500.0,0.00044109,30]
[357411325,1744051933159,-693.21,0.00044109,30]
[357411326,1744051933191,-500.0,0.00044109,30]
[357411327,1744051933217,-563.98630143,0.00044109,30]
[357411328,1744051933245,-500.0,0.00044109,30]
[357411329,1744051933272,-500.0,0.00044109,30]
[357411330,1744051933299,-747.07,0.00044109,30]
[357411331,1744051933325,-500.0,0.00044109,30]
[357411332,1744051933352,-500.0,0.00044109,30]
[357411333,1744051933379,-503.54,0.00044109,30]
[357411334,1744051933409,-500.0,0.00044109,30]
[357411335,1744051933436,-607.35,0.00044109,30]
[357411336,1744051933462,-500.0,0.00044109,30]
[357411337,1744051933489,-500.0,0.00044109,30]
[357411338,1744051933515,-500.0,0.00044109,30]
[357411339,1744051933541,-500.0,0.00044109,30]
[357411340,1744051933568,-559.02,0.00044109,30]
[357411341,1744051933594,-500.0,0.00044109,30]
[357411342,1744051933620,-500.0,0.00044109,30]
[357411343,1744051933647,-500.0,0.00044109,30]
[357411344,1744051933674,-500.0,0.00044109,30]
[357411345,1744051933700,-500.0,0.00044109,30]
[357411346,1744051933726,-500.0,0.00044109,30]
[357411347,1744051933751,-500.0,0.00044109,30]
[357411348,1744051933777,-500.0,0.00044109,30]
[357411349,1744051933803,-913.14,0.00044109,30]
[357411350,1744051933833,-500.0,0.00044109,30]
[357411351,1744051933861,-500.0,0.00044109,30]
[357411352,1744051933890,-675.02,0.00044109,30]
[357411353,1744051933919,-524.82,0.00044109,30]
[357411354,1744051933951,-500.0,0.00044109,30]
[357411355,1744051933979,-500.0,0.00044109,30]
[357411356,1744051934006,-500.0,0.00044109,30]
[357411357,1744051934033,-500.0,0.00044109,30]
[357411358,1744051934065,-500.0,0.00044109,30]
[357411359,1744051934091,-500.0,0.00044109,30]
[357411360,1744051934118,-500.0,0.00044109,30]
[357411361,1744051934144,-500.0,0.00044109,30]
[357411362,1744051934171,-563.12,0.00044109,30]
[357411363,1744051934197,-500.0,0.00044109,30]
[357411364,1744051934225,-611.79,0.00044109,30]
[357411365,1744051934252,-806.75,0.00044109,30]
[357411366,1744051934280,-501.99,0.00044109,30]
[357411367,1744051934308,-518.14,0.00044109,30]
[357411368,1744051934335,-500.0,0.00044109,30]
[357411369,1744051934362,-500.0,0.00044109,30]
[357411370,1744051934390,-500.0,0.00044109,30]
[357411371,1744051934418,-500.0,0.00044109,30]
[357411372,1744051934448,-500.0,0.00044109,30]
[357411373,1744051934476,-624.3,0.00044109,30]
[357411374,1744051934507,-620.74,0.00044109,30]
[357411375,1744051934535,-1144.72,0.00044109,30]
[357411376,1744051934563,-564.79,0.00044109,30]
[357411377,1744051934591,-629.75,0.00044109,30]
[357411378,1744051934618,-526.67,0.00044109,30]
[357411379,1744051934645,-500.0,0.00044109,30]
[357411380,1744051934675,-500.0,0.00044109,30]
[357411381,1744051934703,-500.0,0.00044109,30]
[357411382,1744051934731,-527.74711246,0.00044109,30]
[357411383,1744051934759,-500.0,0.00044109,30]
[357411384,1744051934787,-500.0,0.00044109,30]
[357411385,1744051934819,-368.14535916,0.00044109,30]
[357411386,1744051934850,-795.52,0.00044109,30]
[357411387,1744051934878,-500.0,0.00044109,30]
[357411388,1744051934910,-500.0,0.00044109,30]
[357411389,1744051934943,-582.07,0.00044109,30]
[357411390,1744051934971,-655.74,0.00044109,30]
[357411391,1744051934999,-500.0,0.00044109,30]
[357411392,1744051935026,-500.0,0.00044109,30]
[357411393,1744051935055,-500.0,0.00044109,30]
[357411394,1744051935084,-500.0,0.00044109,30]
[357411395,1744051935115,-500.0,0.00044109,30]
[357411396,1744051935145,-620.9,0.00044109,30]
[357411397,1744051935174,-500.0,0.00044109,30]
[357411398,1744051935202,-500.0,0.00044109,30]
[357411399,1744051935231,-1926.37,0.00044109,30]
[357411400,1744051935260,-500.0,0.00044109,30]
[357411401,1744051935287,-500.0,0.00044109,30]
[357411402,1744051935316,-534.08990638,0.00044109,30]
[357411403,1744051935548,-652.44,0.00044109,30]
[357411404,1744051935578,-500.0,0.00044109,30]
[357411405,1744051935607,-784.6,0.00044109,30]
[357411406,1744051935634,-919.96,0.00044109,30]
[357411407,1744051935661,-500.0,0.00044109,30]
[357411408,1744051935691,-500.0,0.00044109,30]
[357411409,1744051935719,-500.0,0.00044109,30]
[357411410,1744051935746,-500.0,0.00044109,30]
[357411411,1744051935774,-500.0,0.00044109,30]
[357411412,1744051935801,-500.0,0.00044109,30]
[357411413,1744051935832,-500.0,0.00044109,30]
[357411414,1744051935861,-500.0,0.00044109,30]
[357411415,1744051935889,-560.36,0.00044109,30]
[357411416,1744051935916,-500.0,0.00044109,30]
[357411417,1744051935945,-500.0,0.00044109,30]
[357411418,1744051935972,-500.0,0.00044109,30]
[357411419,1744051935999,-500.0,0.00044109,30]
[357411420,1744051936025,-500.0,0.00044109,30]
[357411421,1744051936052,-500.0,0.00044109,30]
[357411422,1744051936080,-836.55,0.00044109,30]
[357411423,1744051936106,-500.0,0.00044109,30]
[357411424,1744051936134,-500.0,0.00044109,30]
[357411425,1744051936161,-500.0,0.00044109,30]
[357411426,1744051936187,-862.42,0.00044109,30]
[357411427,1744051936214,-500.0,0.00044109,30]
[357411428,1744051936241,-527.57273955,0.00044109,30]
[357411429,1744051936268,-500.0,0.00044109,30]
[357411430,1744051936296,-500.0,0.00044109,30]
[357411431,1744051936323,-592.28,0.00044109,30]
[357411432,1744051936351,-1065.99,0.00044109,30]
[357411433,1744051936377,-500.0,0.00044109,30]
[357411434,1744051936404,-500.0,0.00044109,30]
[357411435,1744051936433,-500.0,0.00044109,30]
[357411436,1744051936460,-500.0,0.00044109,30]
[357411437,1744051936487,-500.0,0.00044109,30]
[357411438,1744051936513,-500.0,0.00044109,30]
[357411439,1744051936539,-858.61,0.00044109,30]
[357411440,1744051936566,-1373.81,0.00044109,30]
[357411441,1744051936592,-649.27,0.00044109,30]
[357411442,1744051936619,-564.57,0.00044109,30]
[357411443,1744051936648,-916.41,0.00044109,30]
[357411444,1744051936678,-500.0,0.00044109,30]
[357411445,1744051936705,-500.0,0.00044109,30]
[357411446,1744051936733,-891.4,0.00044109,30]
[357411447,1744051936759,-500.0,0.00044109,30]
[357411448,1744051936786,-532.32,0.00044109,30]
[357411449,1744051936816,-543.53,0.00044109,30]
[357411450,1744051936843,-790.17,0.00044109,30]
[357411451,1744051936872,-500.0,0.00044109,30]
[357411452,1744051936901,-833.66,0.00044109,30]
[357411453,1744051936930,-178.54925436,0.00044109,30]
[357411454,1744051936958,-500.0,0.00044109,30]
[357411455,1744051936986,-522.99686804,0.00044109,30]
[357411456,1744051937013,-758.03,0.00044109,30]
[357411457,1744051937040,-503.31,0.00044109,30]
[357411458,1744051937067,-500.0,0.00044109,30]
[357411459,1744051937095,-500.0,0.00044109,30]
[357411460,1744051937123,-500.0,0.00044109,30]
[357411461,1744051937150,-500.0,0.00044109,30]
[357411462,1744051937177,-500.0,0.00044109,30]
[357411463,1744051937205,-1829.4,0.00044109,30]
[357411464,1744051937233,-500.0,0.00044109,30]
[357411465,1744051937261,-517.63,0.00044109,30]
[357411466,1744051937289,-500.0,0.00044109,30]
[357411467,1744051937317,-500.0,0.00044109,30]
[357411468,1744051937345,-845.67,0.00044109,30]
[357411469,1744051937375,-1074.38,0.00044109,30]
[357411470,1744051937404,-500.0,0.00044109,30]
[357411471,1744051937433,-500.0,0.00044109,30]
[357411472,1744051937463,-500.0,0.00044109,30]
[357411473,1744051937491,-500.0,0.00044109,30]
[357411474,1744051937520,-558.47,0.00044109,30]
[357411475,1744051937548,-500.0,0.00044109,30]
[357411476,1744051937576,-523.06,0.00044109,30]
[357411477,1744051937608,-854.08,0.00044109,30]
[357411478,1744051937636,-865.29,0.00044109,30]
[357411479,1744051937664,-500.0,0.00044109,30]
[357411480,1744051937693,-691.38,0.00044109,30]
[357411481,1744051937722,-500.0,0.00044109,30]
[357411482,1744051937750,-500.0,0.00044109,30]